[Event "Titled Tuesday Blitz February 14 Late 2023"]
[White "Krishnan, Varun"]
[Black "Madaminov, Mukhiddin"]
[WhiteFideId "5054508"]
[BlackFideId "14210703"]
[WhiteElo "2341"]
[BlackElo "2422"]
[Result "0-1"]
[Round "07"]
[TimeControl "180+2"]
[Date "2023.02.14"]
[WhiteClock "0:00:01"]
[BlackClock "0:00:54"]

1. e4 {[%clk 0:03:00]}  e5 {[%clk 0:03:00]} 2. Nf3 {[%clk 0:03:00]}  Nf6 {[%clk 0:03:00]} 3. Nxe5 {[%clk 0:02:58]}  d6 {[%clk 0:03:01]} 4. Nf3 {[%clk 0:02:58]}  Nxe4 {[%clk 0:03:01]} 5. Qe2 {[%clk 0:02:58]}  Qe7 {[%clk 0:02:59]} 6. d3 {[%clk 0:02:54]}  Nf6 {[%clk 0:02:58]} 7. Nc3 {[%clk 0:02:54]}  Be6 {[%clk 0:02:57]} 8. Bg5 {[%clk 0:02:51]}  h6 {[%clk 0:02:54]} 9. Bh4 {[%clk 0:02:48]}  g5 {[%clk 0:02:53]} 10. Bg3 {[%clk 0:02:47]}  Bg7 {[%clk 0:02:54]} 11. h4 {[%clk 0:02:44]}  Nh5 {[%clk 0:02:43]} 12. hxg5 {[%clk 0:02:25]}  Nxg3 {[%clk 0:02:40]} 13. fxg3 {[%clk 0:02:26]}  hxg5 {[%clk 0:02:40]} 14. Rxh8+ {[%clk 0:02:25]}  Bxh8 {[%clk 0:02:41]} 15. O-O-O {[%clk 0:02:13]}  Nc6 {[%clk 0:02:30]} 16. d4 {[%clk 0:01:58]}  d5 {[%clk 0:02:28]} 17. Ne5 {[%clk 0:01:51]}  Nxe5 {[%clk 0:02:24]} 18. dxe5 {[%clk 0:01:52]}  c6 {[%clk 0:02:25]} 19. Qe3 {[%clk 0:01:39]}  O-O-O {[%clk 0:02:01]} 20. Qxa7 {[%clk 0:01:33]}  Bxe5 {[%clk 0:02:01]} 21. Ne2 {[%clk 0:01:12]}  Bg4 {[%clk 0:01:53]} 22. Rd3 {[%clk 0:01:02]}  Bb8 {[%clk 0:01:43]} 23. Qf2 {[%clk 0:01:01]}  Re8 {[%clk 0:01:40]} 24. Rd2 {[%clk 0:00:43]}  f5 {[%clk 0:01:36]} 25. Qd4 {[%clk 0:00:31]}  Bxg3 {[%clk 0:01:29]} 26. c4 {[%clk 0:00:25]}  Be5 {[%clk 0:01:24]} 27. Qd3 {[%clk 0:00:25]}  d4 {[%clk 0:01:23]} 28. g3 {[%clk 0:00:24]}  Qc5 {[%clk 0:01:15]} 29. Bg2 {[%clk 0:00:17]}  Bf6 {[%clk 0:01:15]} 30. Nxd4 {[%clk 0:00:16]}  Rd8 {[%clk 0:01:09]} 31. Ne6 {[%clk 0:00:07]}  Bxb2+ {[%clk 0:00:53]} 32. Kc2 {[%clk 0:00:03]}  Rxd3 {[%clk 0:00:52]} 33. Nxc5 {[%clk 0:00:03]}  Rxd2+ {[%clk 0:00:53]} 34. Kxd2 {[%clk 0:00:03]}  Be5 {[%clk 0:00:54]} 35. Ne6 {[%clk 0:00:01]}  Bxg3 {[%clk 0:00:54]} 36. Kc3 {[%clk 0:00:02]}  Be5+ {[%clk 0:00:54]} 37. Kb4 {[%clk 0:00:02]}  Bf6 {[%clk 0:00:54]} 38. a4 {[%clk 0:00:02]}  f4 {[%clk 0:00:54]} 39. Be4 {[%clk 0:00:01]}  Bxe6 {[%clk 0:00:54]} 0-1


[Site "https://www.chess.com"]

[Event "Titled Tuesday Blitz February 14 Late 2023"]
[White "Boyer, Mahel"]
[Black "Chigaev, Maksim"]
[WhiteFideId "45102422"]
[BlackFideId "4108116"]
[WhiteElo "2489"]
[BlackElo "2628"]
[Result "1-0"]
[Round "07"]
[TimeControl "180+2"]
[Date "2023.02.14"]
[WhiteClock "0:00:45"]
[BlackClock "0:00:03"]

1. d4 {[%clk 0:03:00]}  Nf6 {[%clk 0:03:00]} 2. c4 {[%clk 0:03:00]}  g6 {[%clk 0:03:00]} 3. Nc3 {[%clk 0:02:58]}  Bg7 {[%clk 0:03:00]} 4. e4 {[%clk 0:02:58]}  d6 {[%clk 0:03:01]} 5. Be2 {[%clk 0:02:58]}  O-O {[%clk 0:03:01]} 6. h4 {[%clk 0:02:59]}  h5 {[%clk 0:03:00]} 7. Nf3 {[%clk 0:02:58]}  Bg4 {[%clk 0:03:00]} 8. Ng5 {[%clk 0:02:58]}  Bxe2 {[%clk 0:02:58]} 9. Qxe2 {[%clk 0:02:59]}  Nc6 {[%clk 0:02:45]} 10. d5 {[%clk 0:02:59]}  Nd4 {[%clk 0:02:41]} 11. Qd1 {[%clk 0:02:58]}  c5 {[%clk 0:02:41]} 12. O-O {[%clk 0:02:49]}  Ng4 {[%clk 0:02:35]} 13. Rb1 {[%clk 0:02:32]}  a6 {[%clk 0:02:30]} 14. a4 {[%clk 0:02:32]}  b5 {[%clk 0:02:28]} 15. axb5 {[%clk 0:02:32]}  axb5 {[%clk 0:02:28]} 16. Nxb5 {[%clk 0:02:26]}  Nxb5 {[%clk 0:02:26]} 17. cxb5 {[%clk 0:02:27]}  Qb6 {[%clk 0:02:26]} 18. Qe2 {[%clk 0:02:24]}  Rab8 {[%clk 0:02:24]} 19. f3 {[%clk 0:02:24]}  Nf6 {[%clk 0:02:20]} 20. Bd2 {[%clk 0:02:21]}  Qxb5 {[%clk 0:02:20]} 21. Qxb5 {[%clk 0:02:19]}  Rxb5 {[%clk 0:02:21]} 22. Bc3 {[%clk 0:02:20]}  Rfb8 {[%clk 0:02:21]} 23. Ra1 {[%clk 0:02:19]}  Nd7 {[%clk 0:02:16]} 24. Ra7 {[%clk 0:02:19]}  R5b7 {[%clk 0:02:16]} 25. Rxb7 {[%clk 0:02:18]}  Rxb7 {[%clk 0:02:16]} 26. Ra1 {[%clk 0:02:18]}  Bxc3 {[%clk 0:02:08]} 27. bxc3 {[%clk 0:02:19]}  Kg7 {[%clk 0:02:08]} 28. Ra8 {[%clk 0:02:18]}  Ne5 {[%clk 0:01:59]} 29. Re8 {[%clk 0:02:13]}  Nd3 {[%clk 0:01:54]} 30. Kf1 {[%clk 0:02:05]}  c4 {[%clk 0:01:20]} 31. g3 {[%clk 0:02:02]}  Nc5 {[%clk 0:01:14]} 32. Ke2 {[%clk 0:02:01]}  f6 {[%clk 0:00:46]} 33. Ne6+ {[%clk 0:01:55]}  Nxe6 {[%clk 0:00:46]} 34. dxe6 {[%clk 0:01:56]}  f5 {[%clk 0:00:47]} 35. Ke3 {[%clk 0:01:40]}  fxe4 {[%clk 0:00:41]} 36. fxe4 {[%clk 0:01:17]}  Kf6 {[%clk 0:00:41]} 37. Rg8 {[%clk 0:01:17]}  Rb2 {[%clk 0:00:34]} 38. Rc8 {[%clk 0:01:13]}  Rc2 {[%clk 0:00:23]} 39. Rxc4 {[%clk 0:01:13]}  Kxe6 {[%clk 0:00:24]} 40. Rc7 {[%clk 0:01:09]}  Kf6 {[%clk 0:00:22]} 41. Kf4 {[%clk 0:01:07]}  Rf2+ {[%clk 0:00:20]} 42. Ke3 {[%clk 0:01:07]}  Rg2 {[%clk 0:00:21]} 43. Kf3 {[%clk 0:01:07]}  Rc2 {[%clk 0:00:22]} 44. Kf4 {[%clk 0:01:07]}  Rd2 {[%clk 0:00:13]} 45. Rc6 {[%clk 0:01:05]}  Rd3 {[%clk 0:00:13]} 46. e5+ {[%clk 0:01:05]}  Ke6 {[%clk 0:00:11]} 47. exd6 {[%clk 0:01:06]}  exd6 {[%clk 0:00:11]} 48. Rc7 {[%clk 0:01:03]}  Kf6 {[%clk 0:00:08]} 49. Rd7 {[%clk 0:01:00]}  Ke6 {[%clk 0:00:07]} 50. Rc7 {[%clk 0:00:57]}  Kf6 {[%clk 0:00:05]} 51. Rc6 {[%clk 0:00:53]}  Ke6 {[%clk 0:00:05]} 52. Rc4 {[%clk 0:00:53]}  Kd7 {[%clk 0:00:03]} 53. g4 {[%clk 0:00:48]}  d5 {[%clk 0:00:03]} 54. Rd4 {[%clk 0:00:45]} 1-0


[Site "https://www.chess.com"]

[Event "Titled Tuesday Blitz February 14 Late 2023"]
[White "Kamsky, Gata"]
[Black "Domingo Nunez, Ruben"]
[WhiteFideId "2000024"]
[BlackFideId "22245570"]
[WhiteElo "2665"]
[BlackElo "2416"]
[Result "0-1"]
[Round "07"]
[TimeControl "180+2"]
[Date "2023.02.14"]
[WhiteClock "0:00:02"]
[BlackClock "0:00:04"]

1. e4 {[%clk 0:03:00]}  Nf6 {[%clk 0:03:00]} 2. e5 {[%clk 0:02:56]}  Nd5 {[%clk 0:03:00]} 3. d4 {[%clk 0:02:56]}  d6 {[%clk 0:03:01]} 4. Nf3 {[%clk 0:02:55]}  c6 {[%clk 0:03:01]} 5. Be2 {[%clk 0:02:51]}  Bf5 {[%clk 0:03:01]} 6. O-O {[%clk 0:02:51]}  dxe5 {[%clk 0:03:01]} 7. Nxe5 {[%clk 0:02:50]}  Nd7 {[%clk 0:03:02]} 8. Nf3 {[%clk 0:02:50]}  e6 {[%clk 0:03:00]} 9. c4 {[%clk 0:02:51]}  N5f6 {[%clk 0:02:55]} 10. Nc3 {[%clk 0:02:51]}  Bd6 {[%clk 0:02:55]} 11. Nh4 {[%clk 0:02:51]}  Bg6 {[%clk 0:02:55]} 12. g3 {[%clk 0:02:50]}  O-O {[%clk 0:02:44]} 13. Bf3 {[%clk 0:02:46]}  Re8 {[%clk 0:02:33]} 14. Re1 {[%clk 0:02:45]}  Rc8 {[%clk 0:02:06]} 15. a3 {[%clk 0:02:43]}  e5 {[%clk 0:02:06]} 16. Nxg6 {[%clk 0:02:40]}  hxg6 {[%clk 0:02:07]} 17. d5 {[%clk 0:02:11]}  cxd5 {[%clk 0:02:08]} 18. Nxd5 {[%clk 0:02:09]}  Rxc4 {[%clk 0:02:05]} 19. Nxf6+ {[%clk 0:02:05]}  Nxf6 {[%clk 0:01:58]} 20. Bxb7 {[%clk 0:02:01]}  Qb6 {[%clk 0:01:52]} 21. Bg2 {[%clk 0:01:55]}  Bc5 {[%clk 0:01:52]} 22. Qe2 {[%clk 0:01:50]}  Rd8 {[%clk 0:00:33]} 23. Kf1 {[%clk 0:01:30]}  Qb3 {[%clk 0:00:15]} 24. Qf3 {[%clk 0:01:06]}  Rd3 {[%clk 0:00:14]} 25. Be3 {[%clk 0:00:40]}  e4 {[%clk 0:00:14]} 26. Qf4 {[%clk 0:00:33]}  Nd5 {[%clk 0:00:14]} 27. Qe5 {[%clk 0:00:26]}  Bxe3 {[%clk 0:00:14]} 28. Bxe4 {[%clk 0:00:21]}  Bxf2 {[%clk 0:00:06]} 29. Kxf2 {[%clk 0:00:17]}  Rd2+ {[%clk 0:00:06]} 30. Kg1 {[%clk 0:00:16]}  Qb6+ {[%clk 0:00:05]} 31. Kh1 {[%clk 0:00:14]}  Qf2 {[%clk 0:00:04]} 32. g4 {[%clk 0:00:02]}  Rxe4 {[%clk 0:00:04]} 0-1


[Site "https://www.chess.com"]

[Event "Titled Tuesday Blitz February 14 Late 2023"]
[White "Fier, Alexandr"]
[Black "Kalogeris, Ioannis"]
[WhiteFideId "2107139"]
[BlackFideId "4239563"]
[WhiteElo "2589"]
[BlackElo "2423"]
[Result "1-0"]
[Round "07"]
[TimeControl "180+2"]
[Date "2023.02.14"]
[WhiteClock "0:02:06"]
[BlackClock "0:00:51"]

1. d4 {[%clk 0:02:56]}  Nf6 {[%clk 0:02:52]} 2. Bg5 {[%clk 0:02:56]}  Ne4 {[%clk 0:02:45]} 3. h4 {[%clk 0:02:56]}  c5 {[%clk 0:02:41]} 4. dxc5 {[%clk 0:02:55]}  Nxg5 {[%clk 0:02:27]} 5. hxg5 {[%clk 0:02:55]}  e6 {[%clk 0:02:26]} 6. Nf3 {[%clk 0:02:47]}  Bxc5 {[%clk 0:02:26]} 7. e3 {[%clk 0:02:47]}  Qb6 {[%clk 0:02:22]} 8. Nbd2 {[%clk 0:02:45]}  Qxb2 {[%clk 0:02:15]} 9. Bd3 {[%clk 0:02:46]}  Nc6 {[%clk 0:02:03]} 10. Ne4 {[%clk 0:02:30]}  Bb4+ {[%clk 0:01:58]} 11. Kf1 {[%clk 0:02:30]}  d5 {[%clk 0:01:57]} 12. Rb1 {[%clk 0:02:29]}  Qa3 {[%clk 0:01:56]} 13. Ng3 {[%clk 0:02:29]}  g6 {[%clk 0:01:54]} 14. e4 {[%clk 0:02:27]}  Bd7 {[%clk 0:01:48]} 15. exd5 {[%clk 0:02:25]}  exd5 {[%clk 0:01:49]} 16. Rh4 {[%clk 0:02:23]}  O-O {[%clk 0:01:34]} 17. Bb5 {[%clk 0:02:21]}  a5 {[%clk 0:01:29]} 18. Qxd5 {[%clk 0:02:20]}  Rad8 {[%clk 0:01:26]} 19. Ne4 {[%clk 0:02:19]}  Be7 {[%clk 0:01:16]} 20. Nf6+ {[%clk 0:02:10]}  Bxf6 {[%clk 0:01:15]} 21. gxf6 {[%clk 0:02:11]}  Bf5 {[%clk 0:01:07]} 22. Qc4 {[%clk 0:02:11]}  Rfe8 {[%clk 0:00:53]} 23. Rxh7 {[%clk 0:02:07]}  Kxh7 {[%clk 0:00:51]} 24. Qxf7+ {[%clk 0:02:06]} 1-0


[Site "https://www.chess.com"]

[Event "Titled Tuesday Blitz February 14 Late 2023"]
[White "Nasuta, Grzegorz"]
[Black "Poliakova, Varvara"]
[WhiteFideId "1141686"]
[BlackFideId "13518313"]
[WhiteElo "2552"]
[BlackElo "2010"]
[Result "1-0"]
[Round "07"]
[TimeControl "180+2"]
[Date "2023.02.14"]
[WhiteClock "0:00:04"]
[BlackClock "0:00:14"]

1. e4 {[%clk 0:03:00]}  e5 {[%clk 0:02:57]} 2. Nf3 {[%clk 0:03:01]}  Nc6 {[%clk 0:02:57]} 3. d4 {[%clk 0:03:00]}  exd4 {[%clk 0:02:57]} 4. Nxd4 {[%clk 0:03:01]}  Nf6 {[%clk 0:02:51]} 5. Nxc6 {[%clk 0:03:01]}  bxc6 {[%clk 0:02:51]} 6. e5 {[%clk 0:03:01]}  Qe7 {[%clk 0:02:51]} 7. Qe2 {[%clk 0:03:02]}  Nd5 {[%clk 0:02:51]} 8. c4 {[%clk 0:03:02]}  Nb6 {[%clk 0:02:51]} 9. Nc3 {[%clk 0:03:02]}  Qe6 {[%clk 0:02:51]} 10. b3 {[%clk 0:03:01]}  d5 {[%clk 0:02:51]} 11. exd6 {[%clk 0:02:59]}  cxd6 {[%clk 0:02:48]} 12. Bb2 {[%clk 0:02:58]}  Be7 {[%clk 0:02:42]} 13. O-O-O {[%clk 0:02:57]}  O-O {[%clk 0:02:35]} 14. Qc2 {[%clk 0:02:35]}  a5 {[%clk 0:02:27]} 15. Bd3 {[%clk 0:02:35]}  Qh6+ {[%clk 0:02:24]} 16. Kb1 {[%clk 0:02:34]}  a4 {[%clk 0:02:23]} 17. h4 {[%clk 0:02:13]}  axb3 {[%clk 0:02:21]} 18. axb3 {[%clk 0:02:14]}  Be6 {[%clk 0:02:16]} 19. f3 {[%clk 0:01:55]}  d5 {[%clk 0:02:14]} 20. Bc1 {[%clk 0:01:53]}  Qf6 {[%clk 0:01:48]} 21. Bg5 {[%clk 0:01:53]}  Qe5 {[%clk 0:01:47]} 22. Bxe7 {[%clk 0:01:52]}  dxc4 {[%clk 0:01:48]} 23. Bxh7+ {[%clk 0:01:48]}  Kh8 {[%clk 0:01:48]} 24. b4 {[%clk 0:01:24]}  Rfe8 {[%clk 0:01:31]} 25. Bd6 {[%clk 0:01:15]}  Qh5 {[%clk 0:01:30]} 26. Be4 {[%clk 0:01:11]}  Nd5 {[%clk 0:01:30]} 27. g4 {[%clk 0:00:59]}  Qh6 {[%clk 0:01:24]} 28. g5 {[%clk 0:00:55]}  Qh5 {[%clk 0:01:22]} 29. Bc5 {[%clk 0:00:41]}  Nxb4 {[%clk 0:01:17]} 30. Bxb4 {[%clk 0:00:41]}  Rab8 {[%clk 0:01:15]} 31. Qb2 {[%clk 0:00:14]}  c5 {[%clk 0:01:14]} 32. Bxc5 {[%clk 0:00:14]}  Rxb2+ {[%clk 0:01:13]} 33. Kxb2 {[%clk 0:00:15]}  Rb8+ {[%clk 0:01:12]} 34. Kc2 {[%clk 0:00:15]}  g6 {[%clk 0:01:09]} 35. Bd4+ {[%clk 0:00:14]}  Kg8 {[%clk 0:01:09]} 36. Bf6 {[%clk 0:00:14]}  Bf5 {[%clk 0:01:08]} 37. Rdf1 {[%clk 0:00:05]}  Re8 {[%clk 0:01:00]} 38. Rh2 {[%clk 0:00:02]}  Bxe4+ {[%clk 0:00:42]} 39. Nxe4 {[%clk 0:00:03]}  Rxe4 {[%clk 0:00:43]} 40. fxe4 {[%clk 0:00:04]}  Qg4 {[%clk 0:00:43]} 41. Rd2 {[%clk 0:00:05]}  Qxe4+ {[%clk 0:00:41]} 42. Kc1 {[%clk 0:00:05]}  Kh7 {[%clk 0:00:37]} 43. Rd8 {[%clk 0:00:05]}  Qe3+ {[%clk 0:00:37]} 44. Kc2 {[%clk 0:00:05]}  Qe2+ {[%clk 0:00:31]} 45. Kc3 {[%clk 0:00:06]}  Qe3+ {[%clk 0:00:31]} 46. Kb4 {[%clk 0:00:06]}  Qb3+ {[%clk 0:00:24]} 47. Kc5 {[%clk 0:00:06]}  Qa3+ {[%clk 0:00:20]} 48. Kc6 {[%clk 0:00:03]}  Qa6+ {[%clk 0:00:20]} 49. Kd5 {[%clk 0:00:04]}  Qb7+ {[%clk 0:00:17]} 50. Kd4 {[%clk 0:00:03]}  Qb6+ {[%clk 0:00:17]} 51. Ke4 {[%clk 0:00:04]}  Qe6+ {[%clk 0:00:14]} 52. Kf4 {[%clk 0:00:03]}  Qf5+ {[%clk 0:00:14]} 53. Kg3 {[%clk 0:00:04]} 1-0


[Site "https://www.chess.com"]

[Event "Titled Tuesday Blitz February 14 Late 2023"]
[White "Jovic, Stanoje"]
[Black "Oro, Faustino"]
[WhiteFideId "905020"]
[BlackFideId "20000197"]
[WhiteElo "2075"]
[BlackElo "2269"]
[Result "0-1"]
[Round "07"]
[TimeControl "180+2"]
[Date "2023.02.14"]
[WhiteClock "0:00:01"]
[BlackClock "0:00:10"]

1. c4 {[%clk 0:03:00]}  Nf6 {[%clk 0:02:57]} 2. g3 {[%clk 0:03:00]}  e6 {[%clk 0:02:54]} 3. Bg2 {[%clk 0:03:00]}  d5 {[%clk 0:02:55]} 4. Nf3 {[%clk 0:03:00]}  Be7 {[%clk 0:02:55]} 5. O-O {[%clk 0:03:00]}  O-O {[%clk 0:02:55]} 6. d4 {[%clk 0:03:00]}  dxc4 {[%clk 0:02:55]} 7. Ne5 {[%clk 0:03:00]}  Nc6 {[%clk 0:02:54]} 8. Bxc6 {[%clk 0:03:00]}  bxc6 {[%clk 0:02:54]} 9. Nxc6 {[%clk 0:03:01]}  Qd7 {[%clk 0:02:53]} 10. Nxe7+ {[%clk 0:03:01]}  Qxe7 {[%clk 0:02:54]} 11. Na3 {[%clk 0:03:01]}  c5 {[%clk 0:02:48]} 12. Nxc4 {[%clk 0:03:01]}  Bb7 {[%clk 0:02:40]} 13. b3 {[%clk 0:02:57]}  Ne4 {[%clk 0:01:49]} 14. dxc5 {[%clk 0:02:44]}  Rfd8 {[%clk 0:01:41]} 15. Qc2 {[%clk 0:02:30]}  Qxc5 {[%clk 0:01:32]} 16. Be3 {[%clk 0:02:20]}  Qh5 {[%clk 0:01:27]} 17. f3 {[%clk 0:02:10]}  Nf6 {[%clk 0:01:25]} 18. Rad1 {[%clk 0:01:59]}  Bd5 {[%clk 0:01:24]} 19. Bd4 {[%clk 0:01:53]}  Ne8 {[%clk 0:01:15]} 20. e4 {[%clk 0:01:50]}  Bb7 {[%clk 0:01:11]} 21. Qf2 {[%clk 0:01:49]}  Ba6 {[%clk 0:00:58]} 22. Bxa7 {[%clk 0:01:43]}  Rxd1 {[%clk 0:00:58]} 23. Rxd1 {[%clk 0:01:43]}  Nf6 {[%clk 0:00:55]} 24. Be3 {[%clk 0:01:38]}  Nxe4 {[%clk 0:00:51]} 25. Qg2 {[%clk 0:01:17]}  Nc3 {[%clk 0:00:51]} 26. Rd7 {[%clk 0:01:07]}  Bb5 {[%clk 0:00:40]} 27. Ra7 {[%clk 0:00:54]}  Rd8 {[%clk 0:00:37]} 28. Nd6 {[%clk 0:00:46]}  Qd5 {[%clk 0:00:26]} 29. Qd2 {[%clk 0:00:34]}  Qc6 {[%clk 0:00:19]} 30. Kg2 {[%clk 0:00:16]}  Rxd6 {[%clk 0:00:13]} 31. Qxd6 {[%clk 0:00:13]}  Qxd6 {[%clk 0:00:12]} 32. Ra8+ {[%clk 0:00:13]}  Qf8 {[%clk 0:00:12]} 33. Rxf8+ {[%clk 0:00:14]}  Kxf8 {[%clk 0:00:13]} 34. a4 {[%clk 0:00:14]}  Bd3 {[%clk 0:00:12]} 35. a5 {[%clk 0:00:10]}  Ke8 {[%clk 0:00:11]} 36. f4 {[%clk 0:00:09]}  Nd5 {[%clk 0:00:11]} 37. Bd4 {[%clk 0:00:08]}  f6 {[%clk 0:00:10]} 38. Kf2 {[%clk 0:00:08]}  Kd7 {[%clk 0:00:11]} 39. Ke1 {[%clk 0:00:08]}  Kc6 {[%clk 0:00:11]} 40. Kd2 {[%clk 0:00:09]}  Be4 {[%clk 0:00:10]} 41. Bb2 {[%clk 0:00:04]}  Kb5 {[%clk 0:00:11]} 42. Ba3 {[%clk 0:00:04]}  Kxa5 {[%clk 0:00:11]} 43. Bf8 {[%clk 0:00:05]}  g6 {[%clk 0:00:12]} 44. h4 {[%clk 0:00:02]}  Kb5 {[%clk 0:00:12]} 45. g4 {[%clk 0:00:02]}  Bf3 {[%clk 0:00:10]} 46. g5 {[%clk 0:00:01]}  f5 {[%clk 0:00:10]} 0-1


[Site "https://www.chess.com"]

[Event "Titled Tuesday Blitz February 14 Late 2023"]
[White "Lopez Idarraga, Daniel Eduardo"]
[Black "Costachi, Mihnea"]
[WhiteFideId "4405501"]
[BlackFideId "1217518"]
[WhiteElo "2009"]
[BlackElo "2476"]
[Result "0-1"]
[Round "07"]
[TimeControl "180+2"]
[Date "2023.02.14"]
[WhiteClock "0:01:41"]
[BlackClock "0:01:20"]

1. e4 {[%clk 0:03:00]}  c5 {[%clk 0:02:59]} 2. d4 {[%clk 0:03:00]}  cxd4 {[%clk 0:02:59]} 3. c3 {[%clk 0:03:01]}  d5 {[%clk 0:02:57]} 4. exd5 {[%clk 0:03:01]}  Qxd5 {[%clk 0:02:56]} 5. cxd4 {[%clk 0:03:01]}  Nc6 {[%clk 0:02:57]} 6. Nf3 {[%clk 0:03:02]}  Bg4 {[%clk 0:02:57]} 7. Be2 {[%clk 0:03:02]}  Nf6 {[%clk 0:02:55]} 8. Nc3 {[%clk 0:03:02]}  Qa5 {[%clk 0:02:54]} 9. O-O {[%clk 0:03:01]}  e6 {[%clk 0:02:54]} 10. Bd2 {[%clk 0:02:52]}  Qd8 {[%clk 0:02:52]} 11. Bf4 {[%clk 0:02:49]}  Be7 {[%clk 0:02:44]} 12. Rc1 {[%clk 0:02:46]}  O-O {[%clk 0:02:43]} 13. Re1 {[%clk 0:02:45]}  Nb4 {[%clk 0:02:30]} 14. Qb3 {[%clk 0:02:41]}  Bxf3 {[%clk 0:02:23]} 15. Bxf3 {[%clk 0:02:39]}  Nd3 {[%clk 0:02:23]} 16. Be5 {[%clk 0:02:27]}  Nxe1 {[%clk 0:02:18]} 17. Rxe1 {[%clk 0:02:27]}  Bd6 {[%clk 0:02:11]} 18. Qxb7 {[%clk 0:02:22]}  Rb8 {[%clk 0:02:08]} 19. Qxa7 {[%clk 0:02:21]}  Rxb2 {[%clk 0:02:06]} 20. Ne4 {[%clk 0:02:17]}  Nxe4 {[%clk 0:01:52]} 21. Bxe4 {[%clk 0:02:18]}  Bxe5 {[%clk 0:01:51]} 22. dxe5 {[%clk 0:02:19]}  Qd2 {[%clk 0:01:47]} 23. Qe3 {[%clk 0:02:12]}  Rxa2 {[%clk 0:01:36]} 24. Qxd2 {[%clk 0:02:11]}  Rxd2 {[%clk 0:01:37]} 25. g3 {[%clk 0:02:11]}  Rfd8 {[%clk 0:01:36]} 26. Kg2 {[%clk 0:02:10]}  Rb2 {[%clk 0:01:27]} 27. Rc1 {[%clk 0:01:45]}  g6 {[%clk 0:01:26]} 28. g4 {[%clk 0:01:41]}  Rdd2 {[%clk 0:01:25]} 29. Rf1 {[%clk 0:01:41]}  Rb5 {[%clk 0:01:20]} 0-1


[Site "https://www.chess.com"]

[Event "Titled Tuesday Blitz February 14 Late 2023"]
[White "EREBUNI91"]
[Black "Nunez V, Gustavo Eduardo"]
[BlackFideId "4403690"]
[WhiteElo "2724"]
[BlackElo "2212"]
[Result "1-0"]
[Round "07"]
[TimeControl "180+2"]
[Date "2023.02.14"]
[WhiteClock "0:00:25"]
[BlackClock "0:00:29"]

1. e4 {[%clk 0:03:00]}  c5 {[%clk 0:02:59]} 2. Nf3 {[%clk 0:02:59]}  Nc6 {[%clk 0:02:59]} 3. Bb5 {[%clk 0:02:56]}  g6 {[%clk 0:02:58]} 4. Bxc6 {[%clk 0:02:55]}  dxc6 {[%clk 0:02:59]} 5. d3 {[%clk 0:02:55]}  Bg7 {[%clk 0:02:58]} 6. h3 {[%clk 0:02:55]}  e5 {[%clk 0:02:58]} 7. O-O {[%clk 0:02:55]}  Qc7 {[%clk 0:02:58]} 8. Be3 {[%clk 0:02:56]}  b6 {[%clk 0:02:58]} 9. Nc3 {[%clk 0:02:54]}  Nf6 {[%clk 0:02:57]} 10. a4 {[%clk 0:02:54]}  a5 {[%clk 0:02:56]} 11. Nh2 {[%clk 0:02:41]}  Nh5 {[%clk 0:02:48]} 12. Qe2 {[%clk 0:02:35]}  O-O {[%clk 0:02:46]} 13. Nf3 {[%clk 0:02:27]}  h6 {[%clk 0:02:42]} 14. Rae1 {[%clk 0:02:16]}  Bd7 {[%clk 0:02:38]} 15. Qd2 {[%clk 0:02:13]}  Kh7 {[%clk 0:02:37]} 16. g3 {[%clk 0:02:04]}  Bxh3 {[%clk 0:02:36]} 17. Qe2 {[%clk 0:01:58]}  Rae8 {[%clk 0:02:24]} 18. Nh2 {[%clk 0:01:52]}  Bxf1 {[%clk 0:02:24]} 19. Rxf1 {[%clk 0:01:52]}  f5 {[%clk 0:02:21]} 20. exf5 {[%clk 0:01:48]}  Rxf5 {[%clk 0:02:22]} 21. Ne4 {[%clk 0:01:41]}  Ref8 {[%clk 0:02:19]} 22. Bd2 {[%clk 0:01:32]}  Nf6 {[%clk 0:02:17]} 23. g4 {[%clk 0:01:26]}  Nxe4 {[%clk 0:01:56]} 24. gxf5 {[%clk 0:01:24]}  gxf5 {[%clk 0:01:48]} 25. dxe4 {[%clk 0:01:22]}  f4 {[%clk 0:01:45]} 26. Qg4 {[%clk 0:01:18]}  Bf6 {[%clk 0:01:40]} 27. Kh1 {[%clk 0:01:14]}  Bg5 {[%clk 0:01:38]} 28. Nf3 {[%clk 0:01:11]}  Qd6 {[%clk 0:01:36]} 29. Rg1 {[%clk 0:01:07]}  Rg8 {[%clk 0:01:27]} 30. Bc3 {[%clk 0:01:03]}  Qg6 {[%clk 0:01:24]} 31. Nxe5 {[%clk 0:00:58]}  Qxe4+ {[%clk 0:01:24]} 32. f3 {[%clk 0:00:57]}  Qxc2 {[%clk 0:01:19]} 33. Qd7+ {[%clk 0:00:50]}  Rg7 {[%clk 0:01:20]} 34. Qh3 {[%clk 0:00:46]}  b5 {[%clk 0:01:08]} 35. Ng4 {[%clk 0:00:40]}  Rg6 {[%clk 0:01:01]} 36. axb5 {[%clk 0:00:35]}  cxb5 {[%clk 0:01:02]} 37. Ne5 {[%clk 0:00:31]}  Rg7 {[%clk 0:01:00]} 38. Nd7 {[%clk 0:00:31]}  Rf7 {[%clk 0:00:53]} 39. Qe6 {[%clk 0:00:28]}  Re7 {[%clk 0:00:29]} 40. Nf8# {[%clk 0:00:25]} 1-0


[Site "https://www.chess.com"]